Cogmind - Beta 9.6 @@@ ROGUE MODE // 2020.04.28 @ 21:39:27 Player: Artem Result: Destroyed by S-10 Pest with Light Assault Rifle Performance ------------- Evolutions (0) 0 Regions Visited (1) 200 Robots Destroyed (7) 35 Value Destroyed (157) 157 Prototype IDs (0) 0 Alien Tech Used (0) 0 Bonus (0) 0 TOTAL SCORE: 392 Bonus ------- None Cogmind --------- Core Integrity 0/250 Matter 283/400 Energy 100/100 System Corruption 7% Temperature Cool (0) Movement Core (600) Ox11 Location -10/Materials Parts ------- > --- POWER (1) -------- (None) > --- PROPULSION (2) --- (None) > --- UTILITY (2) ------ High-capacity Storage Unit Medium Matter Pod > --- WEAPON (2) ------- Mining Claw > --- INVENTORY (12) --- Mining Laser Peak State ------------ > --- POWER ------------ Ion Engine > --- PROPULSION ------- Wheel Wheel > --- UTILITY ---------- High-capacity Storage Unit > --- WEAPON ----------- EM Pulse Gun EM Pulse Gun > --- INVENTORY -------- Light Ion Engine Medium Laser Light Assault Rifle [Rating: 6] Favorites ----------- Power Ion Engine Engine Ion Engine Propulsion Wheel Wheel Wheel Utility High-capacity Storage Unit Storage High-capacity Storage Unit Weapon EM Pulse Gun Energy Gun EM Pulse Gun Ballistic Gun Light Assault Rifle Slashing Weapon Mining Claw Build | -11 -10 ------- Run | Scr Mat Slots Evolved . | . . Power . | . . Propulsion . | . . Utility . | . . Weapon . | . . Parts Attached 19 | 6 13 Power 4 | 2 2 Engine 4 | 2 2 Core . | . . Reactor . | . . Propulsion 2 | 2 . Treads . | . . Leg . | . . Wheel 2 | 2 . Hover . | . . Flight . | . . Utility 2 | . 2 Device . | . . Storage 2 | . 2 Processor . | . . Hackware . | . . Protection . | . . Artifact . | . . Weapon 11 | 2 9 Energy Gun 5 | 2 3 Energy Cannon . | . . Ballistic Gun 2 | . 2 Ballistic Cannon . | . . Launcher . | . . Special Weapon . | . . Impact Weapon . | . . Slashing Weapon 4 | . 4 Piercing Weapon . | . . Special Melee Weapon . | . . Unidentified Prototypes . | . . Parts Lost 7 | . 7 Power 1 | . 1 Propulsion 2 | . 2 Utility . | . . Weapon 4 | . 4 Highest Loss Streak 3 | . 3 Average Slot Usage (%) 79 | . 79 Engine 14 | . 14 Wheel 22 | . 22 Storage 15 | . 15 Energy Gun 13 | . 13 Ballistic Gun 3 | . 3 Slashing Weapon 8 | . 8 Naked Turns . | . . Heaviest Build 42 | 9 42 Greatest Support 20 | 20 20 Greatest Overweight (x) 4 | . 4 Average Overweight (x) 1 | . 1 Largest Inventory Capacity 12 | 4 12 Average Capacity 10 | 4 11 Most Carried 6 | 3 6 Average Carried 2 | . 3 Final Capacity 12 | 4 12 Final Carried 2 | 2 1 Class Distribution -------------------- 100% | Mutant Dominant Class ---------------- Mutant | -10/Materials Resources | -11 -10 ----------- Run | Scr Mat Matter Collected 367 | 250 117 Remotely . | . . Salvage Created 218 | 65 153 Parts 17 | 6 11 Haulers Intercepted . | . . Recyclers Shooed . | . . Parts Field Recycled . | . . Retrieved Matter . | . . Parts Self-Destructed . | . . Prevented . | . . Kills | -11 -10 ------- Run | Scr Mat Combat Hostiles Destroyed 6 | 1 5 Melee 1 | . 1 Guns 4 | 1 3 AOE 1 | . 1 Classes Destroyed 3 | 2 1 Worker 1 | 1 . Swarmer 2 | . 2 Grunt 4 | 1 3 Best Kill Streak 2 | 2 2 Combat Bots Only 2 | 1 2 Max Kills in Single Turn 1 | 1 1 Gunslinging . | . . Exploded 1 | . 1 Melee 1 | . 1 Uniques/NPCs Destroyed . | . . Combat | -11 -10 -------- Run | Scr Mat Damage Taken 766 | 10 756 Core 254 | 10 244 Absorbed by Shields . | . . Core Remaining (%) 96 | 96 . Volleys Fired 37 | 2 35 Largest 2 | 2 2 Hottest 80 | 80 80 Shots Fired 45 | 4 41 Gun 45 | 4 41 Cannon . | . . Launcher . | . . Special . | . . Kinetic 21 | . 21 Thermal 7 | . 7 Explosive . | . . Electromagnetic 17 | 4 13 Robot Hit Streak 3 | 3 3 Robot Miss Streak 5 | . 5 Penetration Max . | . . Secondary Targets . | . . Shots Hit Robots 24 | 3 21 Core Hits 10 | 3 7 Critical Hits . | . . Critical Kills . | . . Critical Parts Destroyed . | . . Melee Attacks 21 | . 21 Impact . | . . Slashing 21 | . 21 Piercing . | . . Sneak Attacks . | . . Combat Hostiles . | . . Follow-up Attacks . | . . Damage Inflicted 344 | 40 304 Guns 238 | 40 198 Cannons . | . . Explosions 36 | . 36 Melee 70 | . 70 Ramming . | . . Kinetic 78 | . 78 Thermal 49 | . 49 Explosive . | . . Electromagnetic 147 | 40 107 Impact . | . . Slashing 70 | . 70 Piercing . | . . Highest Corruption 7 | . 7 Average Corruption 7 | . 7 Corruption Purged . | . . Effects 3 | . 3 Message Errors 1 | . 1 Matter Fused 1 | . 1 Heat Flow Errors 1 | . 1 Overload Shots . | . . Overflow Damage 13 | . 13 Projectiles . | . . Explosions 13 | . 13 Melee . | . . Knockbacks . | . . Impact . | . . Kinetic . | . . Secondary . | . . Self-Inflicted Damage 38 | . 38 Shots 1 | . 1 Rammed . | . . Targets Rammed . | . . Kicked . | . . Crushed . | . . Highest Temperature 159 | 18 159 Average Temperature 35 | 12 38 Received Heat Transfer 96 | 6 90 Siege Activations . | . . Robots Corrupted . | . . Combat Hostiles . | . . Parts Fried . | . . Impact Corruptions . | . . Robots Melted . | . . Combat Hostiles . | . . Parts Melted . | . . Heat Transferred 87 | . 87 Parts Sabotaged . | . . Parts Stolen . | . . Parts Stripped . | . . Power Chain Reactions 1 | . 1 Missiles Intercepted . | . . Alert | -11 -10 ------- Run | Scr Mat Peak Influence 90 | 25 90 Average Influence 45 | 5 54 Maximum Alert Level . | . . Low Security (%) 100 | 100 100 Level 1 . | . . Level 2 . | . . Level 3 . | . . Level 4 . | . . Level 5 . | . . High Security . | . . Max Security . | . . Squads Dispatched 1 | . 1 Investigation 1 | . 1 Extermination . | . . Reinforcement . | . . Assault . | . . Garrison . | . . Intercept . | . . Construction Impeded . | . . Haulers Reinforced . | . . Stealth | -11 -10 --------- Run | Scr Mat Distress Signals . | . . Communications Jammed . | . . Distress Signals . | . . Times Spotted 17 | 1 16 Peak Tracking Total 4 | 1 4 Tactical Retreats 4 | . 4 Traps | -11 -10 ------- Run | Scr Mat Traps Triggered . | . . Indirectly . | . . Trap Hack Attempts . | . . Triggered . | . . Disarmed . | . . Reprogrammed . | . . Reused . | . . Traps Extracted . | . . Installed . | . . Triggered . | . . Machines | -11 -10 ---------- Run | Scr Mat Machines Disabled . | . . Max in Single Turn . | . . Machines Sabotaged . | . . Garrisons Compromised . | . . Overloaded Fab Kills . | . . Fab Network Shutdowns . | . . Hacking | -11 -10 --------- Run | Scr Mat Machines Accessed 2 | . 2 Terminals 1 | . 1 Fabricators . | . . Repair Stations . | . . Recycling Units 1 | . 1 Scanalyzers . | . . Garrison Access . | . . Total Hacks 6 | . 6 Successful 6 | . 6 Failed . | . . Catastrophic . | . . Database Lockouts . | . . Manual . | . . Terminals 3 | . 3 Fabricators . | . . Repair Stations . | . . Recycling Units 3 | . 3 Scanalyzers . | . . Garrison Access . | . . Terminal Hacks 3 | . 3 Record 2 | . 2 Locate Traps 1 | . 1 Fabricator Hacks . | . . Repair Station Hacks . | . . Recycling Unit Hacks 3 | . 3 Process 2 | . 2 Report Inventory 1 | . 1 Scanalyzer . | . . Garrison Access Hacks . | . . Unauthorized Hacks . | . . Terminals . | . . Fabricators . | . . Repair Stations . | . . Recycling Units . | . . Scanalyzers . | . . Garrison Access . | . . Data Cores Recovered . | . . Used . | . . Hacking Detections 2 | . 2 Full Trace Events 1 | . 1 Feedback Events . | . . Feedback Blocked . | . . Robot Schematics Acquired . | . . Robots Built . | . . Matter . | . . Time . | . . Total Robot Build Rating . | . . Part Schematics Acquired . | . . Parts Built . | . . Matter . | . . Time . | . . Total Part Build Rating . | . . Parts Repaired . | . . Time . | . . Parts Recycled . | . . Recycled Matter 3 | . 3 Retrieved Matter . | . . Retrieved Components . | . . Parts Scanalyzed . | . . Part Schematics Acquired . | . . Parts Damaged . | . . Bothacking | -11 -10 ------------ Run | Scr Mat Used RIF Installer . | . . Robots Hacked . | . . Non-combat . | . . Combat . | . . Robot Hacks Applied . | . . Relay Couplers Released . | . . Robots Rewired . | . . Allies Hacked . | . . Hacks Repelled . | . . Allies | -11 -10 -------- Run | Scr Mat Total Allies . | . . Largest Group . | . . Highest-Rated Group . | . . Highest-Rated Ally . | . . Total Orders . | . . Ally Attacks . | . . Total Damage . | . . Kills . | . . Allies Corrupted . | . . Allies Melted . | . . Intel | -11 -10 ------- Run | Scr Mat Robot Analysis Total . | . . Derelict Logs Recovered . | . . Drone Launches . | . . Drone Recoveries . | . . Exploration | -11 -10 ------------- Run | Scr Mat Turns Passed 441 | 80 361 Spaces Moved 261 | 74 187 Core 16 | 16 . Treads . | . . Legs . | . . Wheels 245 | 58 187 Hover . | . . Flight . | . . Fastest Speed 50 | 50 80 Average Speed 92 | 73 99 Slowest Speed 120 | 80 120 Overloaded Moves . | . . Propulsion Burnouts . | . . Robots Hopped . | . . Cave-ins Triggered 2 | . 2 Exploration Rate (%) 16 | 5 27 Regions Visited 1 Branch Regions . Pre-discovered Areas . | . . Known Exits Taken . | . . Unknown Exits Taken 1 | 1 . Scrap Searched . | . . Spaces Dug 12 | . 12 Terrain Destroyed 22 | . 22 Melee 12 | . 12 Projectile . | . . AOE 10 | . 10 Actions | -11 -10 --------- Run | Scr Mat Total 377 | 94 283 Wait 23 | 8 15 Move 258 | 73 185 Hop . | . . Pick Up 12 | 5 7 Fast Attach 1 | 1 . Attach 11 | 4 7 Detach 2 | . 2 Swap 7 | 1 6 Drop 3 | . 3 Fire 37 | 2 35 Melee 21 | . 21 Ram . | . . Kick . | . . Crush . | . . Escape Stasis 2 | . 2 Rewire . | . . Trap . | . . Miscellaneous . | . . Route ------- -11/Scrapyard -10/Materials (discovered 1 exit: [*Min]) History --------- Turn | Location | Event 2 | -11/Scrapyard | Met Revision 17 47 | -11/Scrapyard | Discovered new exit (range 8) 81 | -11/Scrapyard | Entered Materials 308 | -10/Materials | Build established: Mutant 328 | -10/Materials | Crushed by falling debris 329 | -10/Materials | Core integrity fell below 50% 330 | -10/Materials | Crushed by falling debris 362 | -10/Materials | Discovered new exit (range 7) 414 | -10/Materials | Core integrity fell below 20% 442 | -10/Materials | Destroyed by S-10 Pest with Light Assault Rifle Last Messages --------------- 00352_ U-05 Engineer builds a Wall. 00353_ Acquired 10 matter. 00359_ Dropped Ion Engine. 00359_ Dropped Mining Claw. 00362_ EXIT=FOUND 00364_ System corrupted: Matter fused (-8). 00380_ Lgt. Assault Rifle severed. 00383_ ZY#MBPWTU:W=FJ1HDBHTUVUDR 00387_ K-01 Serf cleans the Machine. 00391_ Acquired Med. Matter Pod. 00394_ Acquired Mining Laser. 00394_ K-01 Serf cleans the Machine. 00399_ System corrupted: Heat flow error (+179). 00401_ K-01 Serf cleans the Machine. [Achievement: Storm Trooper] 00436_ Lgt. Assault Rifle destroyed. 00437_ Wheel destroyed. 00441_ S-10 Pest destroyed. 00441_ Ion Engine destroyed. [Achievement: First Step to Greatness] Map ----- +----------------------------------------------------+ | ??????????????????????###????????????????????????? | | ????????????????????? #???????????????????????? | | ???????????????????? #???????????????????????? | | ????????????????????% #???????????????????????? | | ???????????????????? #???????????????????????? | | ???????????????????? ????????????????????????? | | ????????????????????# #????????????????????????? | | ????????????????????# #????????????????????????? | | ????????????????????# #????????????????????????? | | ????????????????????#^^^#????????????????????????? | | ?????????????????####^^^##???????????????????????? | | ?????????????????#""" #???????????????????????? | | ?????????????????#" #???????????????????????? | | ?????????????????#" #???????????????????????? | | ?????????????????#"" < #???????????????????????? | | ?????????????????#" #???????????????????????? | | ?????????????????#" #???????????????????????? | | ?????????????????#""" #???????????????????????? | | ?????????????######## ##???????????????????????? | | ?????????????# # #????????????????????????? | | ?????????????# */+[ +????????????????????????? | | ?????????????# % # #????????????????????????? | | ?????????????# # ########?????????????????? | | ?????????????# # # """ ""????????????????? | | ?????????????# # s #=""""""""???????????????? | | ?????????????######## s/@ """""???????????????? | | ????????????????## ## #= ????????????? | | ???????????????### ## # #??????????? | | ???????????????# =### # #??????????? | | ???????????????## # ###############??????????? | | ???????????########## ###############??????????? | | ???????????# = # # #??????????? | | ???????????# # # #??????????? | | ???????????# # T *** # #??????????? | | ???????????# =#^ ** + #??????????? | | ???????????# %+ * # "Y" #??????????? | | ???????????# # *# """ #??????????? | | #######????# # ################??? | | #????# # """ #???????# #??? | | #????# # """ #???????# #??? | | #????#####+#### """ #???????# """ #??? | | ########## #??# #???????# """ #??? | | + #??# #???????# """ #??? | | # #??# """ #???????# #??? | | #[%* #### """ ##############+#### | | #== """ # | | *+% # | | # # | | ############################################ | | #??????????????????????????????????????????? | +----------------------------------------------------+ Best States ------------- Heat Dissipation 25 Energy Generation 10 Energy Capacity 250 Matter Stores 300 Matter Capacity 400 Sight Range 16 Terrain Scan Density 10 Evasion (%) 50 Item Schematics ----------------- None Robot Schematics ------------------ None Fabricated ------------ Nothing Alien Tech Used ----------------- None Achievements -------------- First Step to Greatness Part-time Excavator Storm Trooper Unlikely Earthworm Challenges ------------ None Game ------ Seed SpectralChromaticTerminator Manual? 0 Play Time 00:12:28 Cumulative 2.3 hours Start 2020.04.28 @ 21:27:35 End 2020.04.28 @ 21:39:27 Sessions 1 Manual Loads 0 Difficulty Rogue Special Mode None Game No. 6 Rogue 6 Adventurer 0 Explorer 0 Win Type - Total 0 Types 0/0/0/0/0/0/0 Lore% 2 Gallery% 9 Achievement% 2 Wizard Run 0 Options --------- ASCII 0 Keyboard 0 Movement Numpad Keybinds 0 Fullscreen 2 Font 16/Smallcaps Map View 76x50 Tactical HUD 1 Map Filters NONE Filters NONE Steam 1 RUN: de53c552-6c2f-4be7-bac2-b48dee005ecc